Cogmind - Beta 16.1 @@@ ROGUE MODE // 2026.04.04 @ 19:37:05 // Winter2022/Polymind Player: the Result: Core destroyed Performance ------------- Evolutions (2) 1000 Regions Visited (4) 800 Robots Destroyed (60) 300 Value Destroyed (1594) 1594 Prototype IDs (2) 40 Alien Tech Used (0) 0 Bonus (1952) 1952 TOTAL SCORE: 4886 Bonus ------- Polymind Skill 2911 High Alert Combat Kills 22 Friendly Fire -981 Cogmind --------- Core Integrity 0/550 Matter 25/125 Energy 48/50 System Corruption 0% Temperature Cool (0) Movement Rolling (80) Location -8/Materials Parts ------- > --- POWER (1) -------- Light Ion Engine > --- PROPULSION (2) --- Wheel Wheel > --- UTILITY (1) ------ Medium Matter Pod > --- WEAPON (1) ------- (None) > --- INVENTORY (1) ---- (None) Peak State ------------ > --- POWER ------------ Improved Deuterium Engine > --- PROPULSION ------- Carbon-fiber Leg Carbon-fiber Leg > --- UTILITY ---------- Advanced Heat Sink YI-UF0's Bottomless Matter Pit Weapon Shielding Shock Absorption System > --- WEAPON ----------- YI-UF0's Doublenader > --- INVENTORY -------- (None) [Rating: 33] Favorites ----------- Power Improved Ion Engine Engine Improved Ion Engine Propulsion Light Treads Treads Light Treads Leg Carbon-fiber Leg Wheel Wheel Flight Unit Flight Unit Utility Heat Sink Device Heat Sink Storage YI-UF0's Bottomless Matter Pit Processor Transport Network Coupler Protection Weapon Shielding Weapon Heavy Assault Rifle Energy Gun Beam Rifle Ballistic Gun Heavy Assault Rifle Launcher YI-UF0's Doublenader Special Weapon Mining Laser Build | -11 -10 -10 -10 -8 ------- Run | Yrd Mat Min Sub Mat Slots Evolved . | . . . . . Power . | . . . . . Propulsion . | . . . . . Utility . | . . . . . Weapon . | . . . . . Parts Attached . | . . . . . Power . | . . . . . Engine . | . . . . . Core . | . . . . . Reactor . | . . . . . Propulsion . | . . . . . Treads . | . . . . . Leg . | . . . . . Wheel . | . . . . . Hover . | . . . . . Flight . | . . . . . Utility . | . . . . . Device . | . . . . . Storage . | . . . . . Processor . | . . . . . Hackware . | . . . . . Protection . | . . . . . Artifact . | . . . . . Weapon . | . . . . . Energy Gun . | . . . . . Energy Cannon . | . . . . . Ballistic Gun . | . . . . . Ballistic Cannon . | . . . . . Launcher . | . . . . . Special Weapon . | . . . . . Impact Weapon . | . . . . . Slashing Weapon . | . . . . . Piercing Weapon . | . . . . . Special Melee Weapon . | . . . . . Unidentified Prototypes . | . . . . . Parts Lost 14 | . . . . 14 Power 2 | . . . . 2 Propulsion 7 | . . . . 7 Utility 2 | . . . . 2 Weapon 3 | . . . . 3 Highest Loss Streak 3 | . . . . 3 To Critical Strikes . | . . . . . Average Backups . | . . . . . Power . | . . . . . Propulsion . | . . . . . Utility . | . . . . . Weapon . | . . . . . Tool/Special . | . . . . . Unused Backups 3 | . . . . 3 Power . | . . . . . Propulsion . | . . . . . Utility 2 | . . . . 2 Weapon 1 | . . . . 1 Tool/Special . | . . . . . Average Slot Usage (%) 89 | . 100 97 100 84 Engine 11 | . 16 12 12 11 Treads 12 | . . . . 19 Leg 10 | . . 25 25 2 Device 23 | . 33 26 25 21 Storage 5 | . . 8 12 2 Protection 7 | . . 8 12 6 Energy Gun 4 | . . 3 . 5 Ballistic Gun 6 | . . . . 10 Launcher 4 | . . 8 12 1 Peak Build Rating 33 | . 8 33 33 33 Average Rating 18 | . 8 29 33 11 On Entrance 16 | . 8 8 33 33 Avg Prop Armor Cover (%) . | . . . . . Naked Turns 109 | . . 21 . 88 Heaviest Build 29 | 6 6 29 29 29 Greatest Support 46 | 20 20 30 30 46 Greatest Overweight (x) 1 | . . . . 1 Average Overweight (x) . | . . . . . Largest Inventory Capacity 6 | . . 1 1 6 Average Capacity 1 | . . . 1 1 Most Carried 3 | . . . 1 3 Average Carried . | . . . . . Final Capacity 1 | . . 1 1 1 Final Carried 1 | . . . 1 . Class Distribution -------------------- 48% | Sentry 43% | Grunt Dominant Class ---------------- Tunneler | -10/Materials Grunt | -10/Mines Grunt | -10/Subcaves Sentry | -8/Materials Resources | -11 -10 -10 -10 -8 ----------- Run | Yrd Mat Min Sub Mat Matter Collected 718 | . . 50 158 510 Remotely . | . . . . . Salvage Created 1081 | . . 139 200 742 Parts 104 | . . 9 31 64 Haulers Intercepted 1 | . . . . 1 Recyclers Shooed 2 | . . . . 2 Parts Field Recycled . | . . . . . Retrieved Matter . | . . . . . Parts Self-Destructed 9 | . . . 9 . Prevented . | . . . . . Parts Restored . | . . . . . Kills | -11 -10 -10 -10 -8 ------- Run | Yrd Mat Min Sub Mat Combat Hostiles Destroyed 46 | . . 2 16 28 Guns 19 | . . 2 . 17 AOE 27 | . . . 16 11 Classes Destroyed 11 | . . 3 3 5 Worker 2 | . . 1 . 1 Builder 4 | . . . . 4 Tunneler 1 | . . 1 . . Hauler 1 | . . . . 1 Operator 1 | . . . . 1 Watcher 3 | . . . . 3 Swarmer 18 | . . . 7 11 Grunt 15 | . . 2 1 12 Sentry 5 | . . . 1 4 Hunter 1 | . . . . 1 Subdweller 7 | . . . 7 . Thug 1 | . . 1 . . Best Kill Streak 6 | . . 2 5 6 Combat Bots Only 5 | . . 2 5 5 Max Kills in Single Turn 2 | . . 2 2 2 Gunslinging . | . . . . . Exploded 2 | . . . 2 2 Melee . | . . . . . Uniques/NPCs Destroyed 1 | . . . . 1 YI-UF0 (-8/Materials) Combat | -11 -10 -10 -10 -8 -------- Run | Yrd Mat Min Sub Mat Hostile Shots Fired 206 | . . 2 37 167 Missed 62 | . . 2 17 43 Hits 144 | . . . 20 124 Projectile 144 | . . . 20 124 Critical Strikes 6 | . . . . 6 Actively Blocked 1 | . . . . 1 Damage Taken 1926 | . . . 252 1674 Core 587 | . . . 35 552 Absorbed by Shields . | . . . . . Redirected to Shielding 27 | . . . 7 20 Ignored by Resistances 190 | . . . 86 104 Regen/Repaired (Parts) 33 | . . . . 33 Core Remaining (%) 93 | 100 . . 86 . Volleys Fired 134 | . . 7 17 110 Largest 2 | . . 1 1 2 Hottest 79 | . . 75 70 79 Shots Fired 174 | . . 7 17 150 Gun 121 | . . 3 . 118 Cannon . | . . . . . Launcher 53 | . . 4 17 32 Special . | . . . . . Kinetic 78 | . . . . 78 Thermal 43 | . . 3 . 40 Explosive 53 | . . 4 17 32 Electromagnetic . | . . . . . Robot Hit Streak 12 | . . 3 5 12 Robot Miss Streak 4 | . . . 2 4 Penetration Max . | . . . . . Secondary Targets 4 | . . . . 4 Max Gunslinging Chain 1 | . . . . 1 Shots Hit Robots 107 | . . 3 7 97 Core Hits 129 | . . 7 31 91 Critical Kills . | . . . . . Critical Parts Destroyed . | . . . . . Critical Strikes 2 | . . . . 2 Burn 2 | . . . . 2 Melee Attacks . | . . . . . Impact . | . . . . . Slashing . | . . . . . Piercing . | . . . . . Sneak Attacks . | . . . . . Combat Hostiles . | . . . . . Follow-up Attacks . | . . . . . Damage Inflicted 4446 | . . 244 1376 2826 Guns 1124 | . . 64 . 1060 Cannons . | . . . . . Explosions 3306 | . . 180 1376 1750 Melee . | . . . . . Ramming 16 | . . . . 16 Kinetic 682 | . . . . 682 Thermal 442 | . . 64 . 378 Explosive 3306 | . . 180 1376 1750 Electromagnetic . | . . . . . Impact . | . . . . . Slashing . | . . . . . Piercing . | . . . . . Highest Corruption . | . . . . . Average Corruption . | . . . . . Corruption Purged . | . . . . . Corruption Blocked . | . . . . . Overload Shots . | . . . . . Overflow Damage 29 | . . . 15 14 Projectiles . | . . . . . Explosions 29 | . . . 15 14 Melee . | . . . . . Knockbacks . | . . . . . Impact . | . . . . . Kinetic . | . . . . . Secondary . | . . . . . Self-Inflicted Damage 118 | . . . 27 91 Shots 11 | . . . 4 7 Rammed 2 | . . . . 2 Targets Rammed 2 | . . . . 2 Kicked . | . . . . . Crushed . | . . . . . Highest Temperature 52 | . . . . 52 Average Temperature 13 | . . . . 13 Received Heat Transfer 636 | . . . 105 531 Siege Activations . | . . . . . Martial Activations . | . . . . . Shielding Activations . | . . . . . Robots Disrupted . | . . . . . Combat Hostiles . | . . . . . Robots Corrupted . | . . . . . Combat Hostiles . | . . . . . Parts Fried . | . . . . . Impact Corruptions . | . . . . . Robots Melted . | . . . . . Combat Hostiles . | . . . . . Parts Melted 2 | . . . . 2 Heat Transferred 1221 | . . 111 . 1110 Parts Sabotaged . | . . . . . Parts Stolen . | . . . . . Parts Stripped . | . . . . . Power Chain Reactions . | . . . . . Alert | -11 -10 -10 -10 -8 ------- Run | Yrd Mat Min Sub Mat Maximum Alert Level 2 | . . . . 2 Low Security (%) 40 | 100 100 100 . 22 Level 1 55 | . . . . 72 Level 2 3 | . . . . 4 Level 3 . | . . . . . Level 4 . | . . . . . Level 5 . | . . . . . High Security . | . . . . . Max Security . | . . . . . Peak Influence 437 | . . 40 . 437 Initial 52 | . . . . 52 Average 203 | . . 1 . 263 Influence Increases 1475 | . . 75 235 1165 Destroy 0b10 Robot/C 780 | . . 40 180 560 Destroy 0b10 Robot/NC 60 | . . 10 . 50 Destroy Leader 138 | . . 10 10 118 Trap Triggered on 0b10 10 | . . . . 10 Successful Hack 14 | . . . . 14 Disable Machine 75 | . . . . 75 Destroy Structure 263 | . . 15 . 248 Lose Combat Pursuer 135 | . . . 45 90 Influence Decreases 1158 | . . 75 134 949 Entered New Map 49 | . . . . 49 Time Decay 951 | . . 75 134 742 Lost Part 140 | . . . . 140 Lost Ally 10 | . . . . 10 Miscellaneous 8 | . . . . 8 Squads Dispatched 5 | . . 1 . 4 Investigation 4 | . . 1 . 3 Extermination . | . . . . . Reinforcement 1 | . . . . 1 Assault . | . . . . . Garrison . | . . . . . Intercept . | . . . . . Searches Triggered . | . . . . . Construction Impeded . | . . . . . Haulers Reinforced . | . . . . . Active Scanning Responses . | . . . . . Cargo Convoy Interrupts . | . . . . . Stealth | -11 -10 -10 -10 -8 --------- Run | Yrd Mat Min Sub Mat Distress Signals 2 | . . . . 2 Communications Jammed . | . . . . . Distress Signals . | . . . . . Times Spotted 68 | . . 1 13 54 Peak Tracking Total 8 | . . 1 6 8 Tactical Retreats 5 | . . . 1 4 Traps | -11 -10 -10 -10 -8 ------- Run | Yrd Mat Min Sub Mat Traps Triggered 2 | . . . 1 1 Indirectly . | . . . . . Trap Hack Attempts . | . . . . . Triggered . | . . . . . Disarmed . | . . . . . Reprogrammed . | . . . . . Reused 1 | . . . . 1 Traps Extracted . | . . . . . Installed 1 | . . . . 1 Triggered 1 | . . . . 1 Most Traps Carried 1 | . . . 1 1 Machines | -11 -10 -10 -10 -8 ---------- Run | Yrd Mat Min Sub Mat Machines Disabled 7 | . . . 2 5 Max in Single Turn 2 | . . . 2 2 Garrison Access 1 | . . . . 1 Machines Repaired . | . . . . . Machines Dismantled . | . . . . . Machines Sabotaged . | . . . . . Overloaded Fab Kills . | . . . . . Hacking | -11 -10 -10 -10 -8 --------- Run | Yrd Mat Min Sub Mat Machines Accessed 9 | . . 2 . 7 Terminals 5 | . . . . 5 Fabricators . | . . . . . Repair Stations 1 | . . . . 1 Recycling Units . | . . . . . Scanalyzers . | . . . . . Garrison Access 1 | . . . . 1 Total Hacks 16 | . . 2 . 14 Successful 8 | . . 2 . 6 Failed 8 | . . . . 8 Catastrophic 1 | . . . . 1 Database Lockouts . | . . . . . Manual 8 | . . . . 8 Terminals 12 | . . . . 12 Fabricators . | . . . . . Repair Stations 1 | . . . . 1 Recycling Units . | . . . . . Scanalyzers . | . . . . . Garrison Access 1 | . . . . 1 Terminal Hacks 3 | . . 2 . 1 Open Door 2 | . . 2 . . Locate Traps 1 | . . . . 1 Fabricator Hacks . | . . . . . Repair Station Hacks . | . . . . . Recycling Unit Hacks . | . . . . . Scanalyzer . | . . . . . Garrison Access Hacks 1 | . . . . 1 Seal Access 1 | . . . . 1 Unauthorized Hacks 4 | . . . . 4 Terminals 3 | . . . . 3 Assimilate 2 | . . . . 2 Botnet 1 | . . . . 1 Fabricators . | . . . . . Repair Stations 1 | . . . . 1 Patch 1 | . . . . 1 Recycling Units . | . . . . . Scanalyzers . | . . . . . Garrison Access . | . . . . . Data Cores Recovered 1 | . . . . 1 Used . | . . . . . Hacking Detections 5 | . . . . 5 Full Trace Events 1 | . . . . 1 Feedback Events . | . . . . . Feedback Blocked . | . . . . . Robot Schematics Acquired . | . . . . . Robots Built . | . . . . . Authchips . | . . . . . Time . | . . . . . Total Robot Build Rating . | . . . . . Part Schematics Acquired . | . . . . . Parts Built . | . . . . . Authchips . | . . . . . Time . | . . . . . Total Part Build Rating . | . . . . . Part Studies Acquired . | . . . . . Parts Repaired . | . . . . . Time . | . . . . . Parts Recycled . | . . . . . Recycled Matter . | . . . . . Retrieved Matter . | . . . . . Retrieved Components . | . . . . . Parts Scanalyzed . | . . . . . Part Schematics Acquired . | . . . . . Parts Damaged . | . . . . . Bothacking | -11 -10 -10 -10 -8 ------------ Run | Yrd Mat Min Sub Mat Used RIF Installer . | . . . . . Robots Hacked 4 | . . . . 4 Non-combat 1 | . . . . 1 Combat 3 | . . . . 3 Robot Hacks Applied 5 | . . . . 5 locate_stockpiles 1 | . . . . 1 find_shortcuts 3 | . . . . 3 find_garrison 1 | . . . . 1 Relay Couplers Released . | . . . . . Fabnet Peak Effective % . | . . . . . Robots Rewired . | . . . . . Allies Hacked . | . . . . . Hacks Repelled . | . . . . . Allies | -11 -10 -10 -10 -8 -------- Run | Yrd Mat Min Sub Mat Total Allies 1 | . . . . 1 Largest Group 1 | . . . . 1 Highest-Rated Group 10 | . . . . 10 Highest-Rated Ally 10 | . . . . 10 Total Orders . | . . . . . Ally Attacks . | . . . . . Total Damage . | . . . . . Kills . | . . . . . Allies Corrupted . | . . . . . Allies Melted . | . . . . . Intel | -11 -10 -10 -10 -8 ------- Run | Yrd Mat Min Sub Mat Active Infowar (turns) 133 | . 20 8 . 105 Terrain 28 | . 20 8 . . Seismic 28 | . 20 8 . . T.N.C. 105 | . . . . 105 Robot Analysis Total 6 | 1 . 1 . 4 Derelict Logs Recovered 2 | . . 2 . . Drone Launches . | . . . . . Drone Recoveries . | . . . . . Exploration | -11 -10 -10 -10 -8 ------------- Run | Yrd Mat Min Sub Mat Turns Passed 5987 | 10 20 1116 1011 3830 Spaces Moved 2882 | 20 25 723 783 1331 Core 267 | 18 . 33 . 216 Treads 659 | . . . . 659 Legs 1749 | . . 681 783 285 Wheels 112 | 2 25 9 . 76 Hover . | . . . . . Flight 95 | . . . . 95 Fastest Speed 37 | 50 80 50 120 37 Average Speed 121 | 53 80 116 120 127 Slowest Speed 190 | 80 80 120 120 190 Overloaded Moves . | . . . . . Propulsion Burnouts . | . . . . . Robots Hopped 2 | . . . . 2 Potential Cave-ins . | . . . . . Cave-ins Triggered . | . . . . . Exploration Rate (%) 47 | 4 11 90 45 86 Regions Visited 4 Branch Regions 2 Pre-discovered Areas . | . . . . . Known Exits Taken . | . . . . . Unknown Exits Taken 4 | 1 1 1 1 . Scrap Searched 3 | . . 3 . . Spaces Dug 50 | . . . . 50 Terrain Destroyed 390 | . . 17 103 270 Melee . | . . . . . Projectile . | . . . . . AOE 390 | . . 17 103 270 Terrain Rammed 1 | . . . . 1 Walls Destroyed 1 | . . . . 1 Machines Disabled . | . . . . . Actions | -11 -10 -10 -10 -8 --------- Run | Yrd Mat Min Sub Mat Total 5189 | 19 24 991 836 3319 Wait 2168 | . . 260 36 1872 Move 2874 | 19 24 722 782 1327 Hop 2 | . . . . 2 Pick Up 3 | . . . 1 2 Fast Attach . | . . . . . Attach . | . . . . . Detach . | . . . . . Swap . | . . . . . Drop 3 | . . . . 3 Fire 134 | . . 7 17 110 Melee . | . . . . . Ram . | . . . . . Kick . | . . . . . Crush 2 | . . . . 2 Escape Stasis . | . . . . . Rewire 2 | . . 2 . . Trap 1 | . . . . 1 Miscellaneous . | . . . . . Route ------- -11/Scrapyard -10/Materials -10/Mines (discovered 3 exits: [*Mat x2] / [*Sub]) -10/Subcaves (discovered 2 exits: *Mat / [*Rec]) -8/Materials (discovered 3 exits: [*Fac x3]) History --------- Turn | Location | Event 3 | -11/Scrapyard | Discovered new exit (range 16) 11 | -11/Scrapyard | Entered Materials 20 | -10/Materials | Discovered new exit (range 13) 31 | -10/Materials | Entered Mines 34 | -10/Mines | Met a Derelict shopkeep closing up shop 54 | -10/Mines | Learned Materials stockpile data 97 | -10/Mines | Discovered new exit (range 11) 165 | -10/Mines | YI-UF0 nonchalantly dropped a Grenade Launcher on the ground 197 | -10/Mines | Learned Materials stockpile data 321 | -10/Mines | Took control of YI-UF0 (ally) 382 | -10/Mines | Discovered new exit (range 7) 547 | -10/Mines | Found the Drone Emporium 688 | -10/Mines | Discovered new exit (range 9) 1147 | -10/Mines | Entered Subcaves 1279 | -10/Subcaves | A Subdweller sparked back to life 1279 | -10/Subcaves | A Subdweller sparked back to life 1361 | -10/Subcaves | Discovered new exit (range 12) 1389 | -10/Subcaves | Shifting Twisted Machinery released Sub. Laser 1414 | -10/Subcaves | Shifting Twisted Machinery released Mak. Light Armor Plating 1876 | -10/Subcaves | Shifting Twisted Machinery released Sub. Machine Gun 1944 | -10/Subcaves | Shifting Twisted Machinery released Sub. Monowheel 2049 | -10/Subcaves | A swath of the cavern ceiling suddenly collapsed 2077 | -10/Subcaves | Discovered new exit (range 14) 2158 | -10/Subcaves | Entered Materials 2389 | -8/Materials | Lost 3 parts (1p1n1u) 2509 | -8/Materials | Discovered new exit (range 13) 2863 | -8/Materials | Murdered YI-UF0 4474 | -8/Materials | Discovered new exit (range 5) 5141 | -8/Materials | Discovered new exit (range 7) 5602 | -8/Materials | Core integrity fell below 50% 5632 | -8/Materials | Lost 3 parts (2n1w) 5660 | -8/Materials | Core integrity fell below 20% 5764 | -8/Materials | Lost 3 parts (1p2n) 5988 | -8/Materials | Core destroyed Last Messages --------------- 05783_ Extracted analysis data for A-02 Transporter. 05784_ S-10 Pest reactivates. 05811_ Acquired Imp. Terrain Scanner. 05881_ Acquired Assault Cannon. 05883_ Dropped Assault Cannon. 05884_ Dropped Imp. Terrain Scanner. 05888_ Released control of A-02 Transporter. 05890_ A-02 Transporter reactivates. 05928_ Took control of K-01 Serf. 05928_ Extracted analysis data for K-01 Serf. 05930_ Cleaned Terminal. 05939_ K-01 Serf cleans the Repair Station. 05944_ Cleaned Repair Station. 05964_ Cleaned Electrolysis Chamber. 05965_ Connecting with Terminal... 05967_ Cleaned Electrolysis Chamber. 05973_ Cleaned Terminal. 05976_ Cleaned Fusion Modulator. 05988_ Slammed into Door. 05988_ Destabilizing: Core damaged (-27). Map ----- +----------------------------------------------------+ | #####+##????""" """ #?? #?????????????? | | +?+ """ """ * #? #?????????????? | | #?# ## ##????????????? | | ] #############+## #????????????? | | + ! #????????????? | | #% +????????????? | | !###+#########+## #????????????? | | ## # ## ##????????????? | | ! ## # #? #?????????????? | | ######### # ## #?????????????? | | ####????# #! """" + #?????????????? | | #????# # """" ## #?????????????? | | #????# + """" ## #?????????????? | | #????#[ !# ## #?????????????? | | #????##### ## #?????????????? | | #????????###+######## #?????????????? | | #??????????# ##?????# #?????????????? | | #??????????# ##?????# #?????????????? | | #????????### ##?????# #?????????????? | | #????????### ######## +?????????????? | | ####???????### #?????????????? | | #######??## # #?????????????? | | # #?# # ######### #?????????????? | | # #?# ##+######### ########??????? | | # [ #?# # % ## ; #?? | | # #?### ## k# #?? | | # "" #??## !/ ## # #?? | | # "" #??## / ##k #? #?? | | # "T #??## // ## #? #?? | | / "" #??## ## k#?? #?? | | # "" #??## ## #?? #?? | | ## ##### ## #???#########?? | | ###+##### ######+##### ####??????????? | | # #???# ### % #??????????? | | # #???# ### #??????????? | | # #???# ### = #??????????? | | + #???# ### #######+#####?????????? | | # #???# #?# #### #?????????? | | # #???# #?# #??#[ """ #?????????? | | # #######+### #??# """ #?????????? | | # #### = """ #?????????? | | # + #?????????? | | # ####"" """ #?????????? | | # ############+#####"T """ #?????????? | | #???????# #"" """ #?????????? | | #???????# T # #?????????? | | #???????# ! ##########?????????? | | ##??????# #??????????????????? | | ####????# #??????????????????? | | # #????# """ #??????????????????? | +----------------------------------------------------+ Best States ------------- Heat Dissipation 55 Energy Generation 23 Energy Capacity 240 Matter Stores 3000 Matter Capacity 3000 Sight Range 16 Terrain Scan Range 16 Terrain Scan Density 10 Additional Mass Support 6 Armor Coverage 150 Resistance: EX 75 Resistance: I 25 Weapon Shielding 33 Evasion (%) 62 Recoil Reduction 2 Item Schematics ----------------- None Robot Schematics ------------------ None Fabricated ------------ Nothing Repaired ---------- Nothing Studied --------- None Alien Tech Used ----------------- None Achievements -------------- None Challenges ------------ None Polymind | -11 -10 -10 -10 -8 ---------- Run | Yrd Mat Min Sub Mat Hosts 8 | 1 . 2 . 5 Combat Hostiles 3 | . . . . 3 Allies 2 | . . 2 . . Unique Host Classes 6 | 1 . 1 . 4 Average Host Suspicion 72 | . 4 93 70 67 Unsuspicious Activity 1951 | 2 . 20 60 1869 Returns to Shadow 2 | . . . . 2 Fuzzy Dispatches . | . . . . . Protomatter Created 320 | . . 19 118 183 Used 90 | 5 . 40 . 45 Decayed 42 | . . . 38 4 Highest Spend 26 | 5 . 26 . 23 Top 5 Hosts by Kills: YI-UF0 (-10/Mines: 27) Y-45 Defender (-8/Materials: 14) GF-GZX(g) (-10/Mines: 2) S-10 Pest (-8/Materials: 2) S-10 Pest (-8/Materials: 1) Game ------ Seed SiegeRocketMiniperforator Manual? 0 Play Time 00:26:04 Cumulative 691.8 hours Start 2026.04.04 @ 19:12:45 End 2026.04.04 @ 19:37:05 Sessions 1 Manual Loads 0 Difficulty Rogue Special Mode Winter2022/Polymind Game No. 386 Rogue 386 Adventurer 0 Explorer 0 Win Type - Total 30 Types 15/1/6/2/1/1/1/2/1/0 Lore% 93 Gallery% 87 Achievement% 78 Wizard Run 0 Options --------- Layout 0 ASCII 0 Keyboard 0 Movement Mouse Keybinds 0 Fullscreen 2 Font 24/Smallcaps Map View 76x50 Zoom Use 0% Tactical HUD 1 Map Filters NONE Filters NONE Steam 1 RUN: ed56c658-1b08-44a7-a0ce-9988c25832c9